[Event "Late-Titled-Tuesday-Blitz-October-17-2023"]
[Site "Chess.com"]
[Date "2023.10.17"]
[Round "7"]
[White "Maksimus1998"]
[Black "alexrustemov"]
[Result "0-1"]
[WhiteElo "2616"]
[BlackElo "2827"]
[TimeControl "180+1"]
[EndTime "15:16:54 PDT"]
[Termination "alexrustemov won by resignation"]

1. d4 {[%clk 0:03:00.9]} 1... d5 {[%clk 0:02:53.3]} 2. Nf3 {[%clk 0:03:00.6]}
2... Nf6 {[%clk 0:02:52.7]} 3. e3 {[%clk 0:02:59.4]} 3... Bf5 {[%clk 0:02:49]}
4. Nbd2 {[%clk 0:02:46.4]} 4... e6 {[%clk 0:02:48.2]} 5. Nh4 {[%clk 0:02:42.1]}
5... Bg4 {[%clk 0:02:45.8]} 6. Be2 {[%clk 0:02:38.8]} 6... Bxe2 {[%clk
0:02:45.2]} 7. Qxe2 {[%clk 0:02:39.7]} 7... c5 {[%clk 0:02:41.1]} 8. O-O {[%clk
0:02:37.4]} 8... Nc6 {[%clk 0:02:40.9]} 9. Nhf3 {[%clk 0:02:36.8]} 9... Rc8
{[%clk 0:02:39]} 10. c3 {[%clk 0:02:36.5]} 10... Be7 {[%clk 0:02:35.3]} 11. dxc5
{[%clk 0:02:36.3]} 11... Bxc5 {[%clk 0:02:35.1]} 12. e4 {[%clk 0:02:36.8]} 12...
O-O {[%clk 0:02:35.1]} 13. e5 {[%clk 0:02:31.3]} 13... Nd7 {[%clk 0:02:29.4]}
14. Nb3 {[%clk 0:02:30.9]} 14... Bb6 {[%clk 0:02:20]} 15. Bf4 {[%clk 0:02:22.4]}
15... Nc5 {[%clk 0:02:13.4]} 16. Nxc5 {[%clk 0:02:04.3]} 16... Bxc5 {[%clk
0:02:14.3]} 17. Rad1 {[%clk 0:02:04.1]} 17... Qc7 {[%clk 0:02:14]} 18. Rfe1
{[%clk 0:01:59.3]} 18... h6 {[%clk 0:02:12]} 19. Qd2 {[%clk 0:01:57.5]} 19...
Rfd8 {[%clk 0:02:11.3]} 20. a3 {[%clk 0:01:45.2]} 20... Bf8 {[%clk 0:02:09.9]}
21. Re3 {[%clk 0:01:39.3]} 21... Na5 {[%clk 0:02:09]} 22. Rd3 {[%clk 0:01:37.5]}
22... Qc4 {[%clk 0:01:49.5]} 23. Nd4 {[%clk 0:01:31.8]} 23... Nb3 {[%clk
0:01:43.3]} 24. Nxb3 {[%clk 0:01:13.2]} 24... Qxb3 {[%clk 0:01:42.2]} 25. Rg3
{[%clk 0:01:05.6]} 25... Kh8 {[%clk 0:01:41.1]} 26. Be3 {[%clk 0:00:59.3]} 26...
Rc4 {[%clk 0:01:35.2]} 27. h3 {[%clk 0:00:43.9]} 27... Re4 {[%clk 0:01:19.3]}
28. Bd4 {[%clk 0:00:42.6]} 28... Qc4 {[%clk 0:01:17.3]} 29. Rd3 {[%clk 0:00:29]}
29... Bc5 {[%clk 0:01:08.9]} 30. b3 {[%clk 0:00:21.6]} 30... Qb5 {[%clk
0:01:07.5]} 31. a4 {[%clk 0:00:18.4]} 31... Qc6 {[%clk 0:01:03.6]} 32. b4 {[%clk
0:00:16.7]} 32... Bxd4 {[%clk 0:01:01.8]} 33. Rxd4 {[%clk 0:00:16.6]} 33... Rxd4
{[%clk 0:00:59.8]} 34. Qxd4 {[%clk 0:00:16.7]} 34... Ra8 {[%clk 0:00:48.5]} 35.
a5 {[%clk 0:00:16]} 35... a6 {[%clk 0:00:48.3]} 36. Rd3 {[%clk 0:00:15.8]} 36...
Rc8 {[%clk 0:00:47.9]} 37. Rf3 {[%clk 0:00:15.1]} 37... Kg8 {[%clk 0:00:47.2]}
38. Qf4 {[%clk 0:00:14.9]} 38... Qd7 {[%clk 0:00:41.8]} 39. Rg3 {[%clk 0:00:15]}
39... Kf8 {[%clk 0:00:40.2]} 40. Qd2 {[%clk 0:00:14.1]} 40... Rc4 {[%clk
0:00:38.6]} 41. Qd3 {[%clk 0:00:13.4]} 41... g6 {[%clk 0:00:38.2]} 42. Qd2
{[%clk 0:00:12]} 42... Kg7 {[%clk 0:00:36.6]} 43. Rd3 {[%clk 0:00:11.2]} 43...
Qc7 {[%clk 0:00:36.1]} 44. Re3 {[%clk 0:00:11]} 44... g5 {[%clk 0:00:31.9]} 45.
g3 {[%clk 0:00:10.6]} 45... Qc6 {[%clk 0:00:28.6]} 46. Rd3 {[%clk 0:00:09.8]}
46... Re4 {[%clk 0:00:25.7]} 47. Re3 {[%clk 0:00:09.9]} 47... Rc4 {[%clk
0:00:20.6]} 48. Rd3 {[%clk 0:00:09.8]} 48... Qa4 {[%clk 0:00:19.3]} 49. Rd4
{[%clk 0:00:08.2]} 49... Qa1+ {[%clk 0:00:18]} 50. Kg2 {[%clk 0:00:07.8]} 50...
Qxc3 {[%clk 0:00:17.9]} 51. Qxc3 {[%clk 0:00:06.4]} 51... Rxc3 {[%clk
0:00:18.3]} 52. h4 {[%clk 0:00:07.3]} 52... Rc4 {[%clk 0:00:11.6]} 53. Rxc4
{[%clk 0:00:05.7]} 53... dxc4 {[%clk 0:00:12.1]} 54. Kf3 {[%clk 0:00:05.7]}
54... gxh4 {[%clk 0:00:11.7]} 55. gxh4 {[%clk 0:00:05.7]} 55... Kg6 {[%clk
0:00:11.9]} 0-1

[Event "Late-Titled-Tuesday-Blitz-October-17-2023"]
[Site "Chess.com"]
[Date "2023.10.17"]
[Round "7"]
[White "Jarming"]
[Black "balachess2006"]
[Result "1-0"]
[WhiteElo "2796"]
[BlackElo "2595"]
[TimeControl "180+1"]
[EndTime "15:16:55 PDT"]
[Termination "Jarming won by resignation"]

1. c4 {[%clk 0:03:00.9]} 1... Nf6 {[%clk 0:03:00]} 2. g3 {[%clk 0:03:00.9]} 2...
g6 {[%clk 0:03:00.1]} 3. Bg2 {[%clk 0:03:01.4]} 3... Bg7 {[%clk 0:03:00.5]} 4.
Nc3 {[%clk 0:03:02.3]} 4... O-O {[%clk 0:02:58.8]} 5. Nf3 {[%clk 0:03:02.8]}
5... c6 {[%clk 0:02:57.7]} 6. O-O {[%clk 0:03:03.7]} 6... d5 {[%clk 0:02:57.8]}
7. cxd5 {[%clk 0:03:04.4]} 7... cxd5 {[%clk 0:02:58.7]} 8. d4 {[%clk 0:03:05.1]}
8... Ne4 {[%clk 0:02:58.3]} 9. Ne5 {[%clk 0:03:04.1]} 9... Nxc3 {[%clk
0:02:58.2]} 10. bxc3 {[%clk 0:03:04.2]} 10... Nc6 {[%clk 0:02:58.5]} 11. Nxc6
{[%clk 0:03:02.7]} 11... bxc6 {[%clk 0:02:59.4]} 12. Qa4 {[%clk 0:03:02.6]}
12... Bd7 {[%clk 0:02:53.6]} 13. Ba3 {[%clk 0:02:49.6]} 13... c5 {[%clk
0:02:52.4]} 14. Qa6 {[%clk 0:02:49.5]} 14... cxd4 {[%clk 0:02:51.4]} 15. cxd4
{[%clk 0:02:49.6]} 15... Rb8 {[%clk 0:02:46.3]} 16. Bc5 {[%clk 0:02:39]} 16...
Bb5 {[%clk 0:02:34.4]} 17. Qxa7 {[%clk 0:02:37.4]} 17... Re8 {[%clk 0:02:31]}
18. a4 {[%clk 0:02:27.4]} 18... Bxe2 {[%clk 0:02:14]} 19. Rfe1 {[%clk
0:02:22.9]} 19... Bc4 {[%clk 0:01:53.1]} 20. Bxe7 {[%clk 0:02:03.1]} 20... Qc8
{[%clk 0:01:51.7]} 21. Qc5 {[%clk 0:01:42.9]} 21... Qd7 {[%clk 0:01:43.3]} 22.
Qd6 {[%clk 0:01:11.2]} 22... Qxd6 {[%clk 0:01:24.7]} 23. Bxd6 {[%clk 0:01:12.1]}
23... Rxe1+ {[%clk 0:01:25.1]} 24. Rxe1 {[%clk 0:01:13]} 24... Ra8 {[%clk
0:01:25.8]} 25. Bc5 {[%clk 0:01:11.2]} 25... Bf6 {[%clk 0:01:10.4]} 26. Rb1
{[%clk 0:00:45.2]} 26... Kg7 {[%clk 0:00:57.9]} 27. Rb4 {[%clk 0:00:44.8]} 27...
Re8 {[%clk 0:00:52.8]} 28. Rb1 {[%clk 0:00:31.6]} 28... Ra8 {[%clk 0:00:52]} 29.
Ra1 {[%clk 0:00:28.6]} 29... Bd8 {[%clk 0:00:50]} 30. Bf1 {[%clk 0:00:24.4]}
30... Kf6 {[%clk 0:00:40.1]} 31. h4 {[%clk 0:00:23.7]} 31... Ke6 {[%clk
0:00:35]} 32. Bh3+ {[%clk 0:00:23.5]} 32... f5 {[%clk 0:00:34.8]} 33. Re1+
{[%clk 0:00:20.8]} 33... Kf7 {[%clk 0:00:34]} 34. Ra1 {[%clk 0:00:19]} 34... Bb5
{[%clk 0:00:23.1]} 35. Bg2 {[%clk 0:00:18.7]} 35... Bc6 {[%clk 0:00:16]} 36. Bf3
{[%clk 0:00:18.3]} 36... Ke6 {[%clk 0:00:15.2]} 37. Bd1 {[%clk 0:00:18.2]} 37...
Kd7 {[%clk 0:00:13.5]} 38. Bc2 {[%clk 0:00:18.3]} 38... Bc7 {[%clk 0:00:12.9]}
39. Re1 {[%clk 0:00:18]} 39... Bxa4 {[%clk 0:00:10.7]} 40. Re7+ {[%clk
0:00:17.6]} 40... Kc6 {[%clk 0:00:10.9]} 41. Bd3 {[%clk 0:00:14.8]} 41... Bb3
{[%clk 0:00:06.5]} 42. Rxh7 {[%clk 0:00:14.5]} 42... Ra1+ {[%clk 0:00:05.2]} 43.
Kg2 {[%clk 0:00:14.4]} 43... Bd1 {[%clk 0:00:05.4]} 44. Rg7 {[%clk 0:00:13.8]}
44... Bh5 {[%clk 0:00:05.9]} 45. Rh7 {[%clk 0:00:12.5]} 45... f4 {[%clk
0:00:05.9]} 46. Bxg6 {[%clk 0:00:10.7]} 46... f3+ {[%clk 0:00:06.1]} 47. Kh2
{[%clk 0:00:11]} 47... Bg4 {[%clk 0:00:06]} 48. Rh6 {[%clk 0:00:10.6]} 48... Kb7
{[%clk 0:00:04.2]} 49. Bh5 {[%clk 0:00:10.8]} 49... Bd7 {[%clk 0:00:03.8]} 50.
Bxf3 {[%clk 0:00:10.4]} 50... Bc6 {[%clk 0:00:03.8]} 51. h5 {[%clk 0:00:10.9]}
51... Ra2 {[%clk 0:00:04.3]} 52. Kg2 {[%clk 0:00:11.2]} 52... Ba5 {[%clk
0:00:04.8]} 53. Re6 {[%clk 0:00:10.7]} 53... Bd2 {[%clk 0:00:03.9]} 54. h6
{[%clk 0:00:10.9]} 54... Ra8 {[%clk 0:00:03.5]} 55. h7 {[%clk 0:00:10.9]} 55...
Rh8 {[%clk 0:00:03.6]} 56. Re7+ {[%clk 0:00:11.3]} 56... Ka6 {[%clk 0:00:04.1]}
57. Rg7 {[%clk 0:00:12]} 57... Bh6 {[%clk 0:00:03.6]} 58. Rg6 {[%clk 0:00:11.8]}
1-0

[Event "Late-Titled-Tuesday-Blitz-October-17-2023"]
[Site "Chess.com"]
[Date "2023.10.17"]
[Round "7"]
[White "Cristi_Coca"]
[Black "AlexPapasimakopoulos"]
[Result "0-1"]
[WhiteElo "2380"]
[BlackElo "2693"]
[TimeControl "180+1"]
[EndTime "15:16:59 PDT"]
[Termination "AlexPapasimakopoulos won by resignation"]

1. e4 {[%clk 0:03:00.9]} 1... e6 {[%clk 0:02:59.8]} 2. d4 {[%clk 0:03:01.1]}
2... d5 {[%clk 0:03:00.3]} 3. Nc3 {[%clk 0:03:01.8]} 3... Bb4 {[%clk 0:02:59.8]}
4. exd5 {[%clk 0:03:02]} 4... exd5 {[%clk 0:02:59.4]} 5. Bd3 {[%clk 0:03:02.2]}
5... Nc6 {[%clk 0:02:59]} 6. Ne2 {[%clk 0:03:00.7]} 6... Nge7 {[%clk 0:02:59.1]}
7. Bf4 {[%clk 0:02:56.6]} 7... Bf5 {[%clk 0:02:57.3]} 8. Bxf5 {[%clk 0:02:52.4]}
8... Nxf5 {[%clk 0:02:58.2]} 9. Qd3 {[%clk 0:02:52.1]} 9... Qd7 {[%clk
0:02:58.7]} 10. O-O-O {[%clk 0:02:51.1]} 10... O-O {[%clk 0:02:50.2]} 11. g4
{[%clk 0:02:47.4]} 11... Nfe7 {[%clk 0:02:44.2]} 12. Rdg1 {[%clk 0:02:41.3]}
12... Rfe8 {[%clk 0:02:43.2]} 13. h4 {[%clk 0:02:36.5]} 13... Bxc3 {[%clk
0:02:26.5]} 14. Nxc3 {[%clk 0:02:35.1]} 14... Nb4 {[%clk 0:02:24.1]} 15. Qb5
{[%clk 0:02:14.8]} 15... Nbc6 {[%clk 0:02:02.1]} 16. Qd3 {[%clk 0:02:14.2]}
16... a6 {[%clk 0:01:58.7]} 17. h5 {[%clk 0:02:09.8]} 17... Nb4 {[%clk
0:01:53.9]} 18. Qd2 {[%clk 0:02:09.4]} 18... c5 {[%clk 0:01:53.3]} 19. dxc5
{[%clk 0:01:46.6]} 19... d4 {[%clk 0:01:51.3]} 20. Ne4 {[%clk 0:01:45.2]} 20...
Qd5 {[%clk 0:01:41.1]} 21. Qxb4 {[%clk 0:01:41]} 21... Qxe4 {[%clk 0:01:40.8]}
22. Bd2 {[%clk 0:01:37.6]} 22... Rad8 {[%clk 0:01:22.4]} 23. Re1 {[%clk
0:01:35.2]} 23... Qc6 {[%clk 0:01:17.1]} 24. g5 {[%clk 0:01:27.1]} 24... Nf5
{[%clk 0:01:14.4]} 25. Qc4 {[%clk 0:01:15.8]} 25... b5 {[%clk 0:01:02.6]} 26.
Qd3 {[%clk 0:01:08.4]} 26... Qxc5 {[%clk 0:01:02.7]} 27. g6 {[%clk 0:01:02.8]}
27... fxg6 {[%clk 0:00:55.4]} 28. hxg6 {[%clk 0:01:03.7]} 28... h6 {[%clk
0:00:54.6]} 29. Rxe8+ {[%clk 0:00:55.5]} 29... Rxe8 {[%clk 0:00:54.3]} 30. Qb3+
{[%clk 0:00:54.9]} 30... Qc4 {[%clk 0:00:53.9]} 31. Qf3 {[%clk 0:00:50.4]} 31...
Qxa2 {[%clk 0:00:35.9]} 32. Bb4 {[%clk 0:00:38.7]} 32... Qa1+ {[%clk 0:00:20.2]}
33. Kd2 {[%clk 0:00:38.9]} 33... Qxb2 {[%clk 0:00:20.9]} 34. Ba5 {[%clk
0:00:20.4]} 34... d3 {[%clk 0:00:18.4]} 35. Qxd3 {[%clk 0:00:18]} 35... Qf6
{[%clk 0:00:18.5]} 36. Qd5+ {[%clk 0:00:14]} 36... Kh8 {[%clk 0:00:18]} 37. Rh5
{[%clk 0:00:11.3]} 37... Ne7 {[%clk 0:00:17.1]} 38. Qf7 {[%clk 0:00:11.2]} 38...
Qxf7 {[%clk 0:00:16.4]} 39. gxf7 {[%clk 0:00:12.1]} 39... Rf8 {[%clk 0:00:17]}
40. Bb4 {[%clk 0:00:12.2]} 40... Rxf7 {[%clk 0:00:17.3]} 41. Re5 {[%clk
0:00:12]} 41... Nc6 {[%clk 0:00:17.1]} 42. Re8+ {[%clk 0:00:12.3]} 42... Kh7
{[%clk 0:00:17.7]} 43. Bc3 {[%clk 0:00:12.7]} 43... Rd7+ {[%clk 0:00:17.3]} 44.
Kc1 {[%clk 0:00:11.9]} 44... h5 {[%clk 0:00:16.7]} 45. Rf8 {[%clk 0:00:10.6]}
45... g5 {[%clk 0:00:15.7]} 46. Rf6 {[%clk 0:00:09.2]} 46... b4 {[%clk
0:00:15.1]} 47. Rxc6 {[%clk 0:00:08.1]} 47... bxc3 {[%clk 0:00:15.1]} 48. Rxc3
{[%clk 0:00:07.4]} 48... Rd6 {[%clk 0:00:15]} 49. Rc8 {[%clk 0:00:05.2]} 49...
h4 {[%clk 0:00:14.8]} 50. c4 {[%clk 0:00:05.9]} 50... h3 {[%clk 0:00:14.5]} 51.
Re8 {[%clk 0:00:04.2]} 51... h2 {[%clk 0:00:11]} 52. Re1 {[%clk 0:00:04]} 52...
Rc6 {[%clk 0:00:11.3]} 53. Rh1 {[%clk 0:00:03]} 53... Rxc4+ {[%clk 0:00:11.9]}
54. Kd2 {[%clk 0:00:03.4]} 54... Rh4 {[%clk 0:00:12.8]} 55. Ke2 {[%clk
0:00:03.7]} 55... Kg6 {[%clk 0:00:13.4]} 56. Kf3 {[%clk 0:00:03.8]} 56... a5
{[%clk 0:00:14]} 57. Kg3 {[%clk 0:00:04.3]} 57... a4 {[%clk 0:00:14.6]} 58. Kg2
{[%clk 0:00:04.1]} 58... a3 {[%clk 0:00:15]} 59. Ra1 {[%clk 0:00:04.4]} 59...
h1=Q+ {[%clk 0:00:14.6]} 60. Rxh1 {[%clk 0:00:03.7]} 60... Rxh1 {[%clk
0:00:15.5]} 61. Kxh1 {[%clk 0:00:04.6]} 61... a2 {[%clk 0:00:16]} 0-1

[Event "Late-Titled-Tuesday-Blitz-October-17-2023"]
[Site "Chess.com"]
[Date "2023.10.17"]
[Round "7"]
[White "Zhigalko_Sergei"]
[Black "K_A_S_T_O_R"]
[Result "1/2-1/2"]
[WhiteElo "2953"]
[BlackElo "2873"]
[TimeControl "180+1"]
[EndTime "15:17:00 PDT"]
[Termination "Game drawn by repetition"]

1. e4 {[%clk 0:03:00.9]} 1... c5 {[%clk 0:02:54.8]} 2. Nf3 {[%clk 0:03:00.8]}
2... d6 {[%clk 0:02:54.4]} 3. d4 {[%clk 0:03:00.8]} 3... cxd4 {[%clk 0:02:54.6]}
4. Qxd4 {[%clk 0:03:01.7]} 4... Bd7 {[%clk 0:02:53.7]} 5. Bc4 {[%clk 0:03:01.9]}
5... Nc6 {[%clk 0:02:53.9]} 6. Qd3 {[%clk 0:03:02.6]} 6... g6 {[%clk 0:02:47.6]}
7. Nc3 {[%clk 0:03:02]} 7... Bg7 {[%clk 0:02:47.6]} 8. h3 {[%clk 0:03:02.6]}
8... Nf6 {[%clk 0:02:47.5]} 9. O-O {[%clk 0:03:03.1]} 9... O-O {[%clk
0:02:47.3]} 10. Bg5 {[%clk 0:03:00.8]} 10... Rc8 {[%clk 0:02:45.6]} 11. Bb3
{[%clk 0:02:59.9]} 11... Qa5 {[%clk 0:02:44.4]} 12. Rfe1 {[%clk 0:02:49.2]}
12... Ne5 {[%clk 0:02:32.5]} 13. Nxe5 {[%clk 0:02:46.2]} 13... Qxe5 {[%clk
0:02:32.9]} 14. Be3 {[%clk 0:02:23.5]} 14... Qa5 {[%clk 0:02:28.4]} 15. Rad1
{[%clk 0:02:20.9]} 15... Bc6 {[%clk 0:02:25.6]} 16. Bd4 {[%clk 0:02:11.3]} 16...
a6 {[%clk 0:02:12]} 17. Nd5 {[%clk 0:01:47.8]} 17... Bxd5 {[%clk 0:02:08.6]} 18.
exd5 {[%clk 0:01:48]} 18... Rfe8 {[%clk 0:02:05.6]} 19. Re2 {[%clk 0:01:31.9]}
19... Nh5 {[%clk 0:01:48.7]} 20. Qe3 {[%clk 0:01:18.9]} 20... Bxd4 {[%clk
0:01:33.3]} 21. Rxd4 {[%clk 0:01:19.8]} 21... Nf6 {[%clk 0:01:32.3]} 22. c3
{[%clk 0:01:15.2]} 22... Qc5 {[%clk 0:01:27.4]} 23. h4 {[%clk 0:01:02.2]} 23...
Kg7 {[%clk 0:01:24.1]} 24. Qg5 {[%clk 0:00:57.4]} 24... h6 {[%clk 0:01:22.9]}
25. Qf4 {[%clk 0:00:54.7]} 25... b5 {[%clk 0:01:09.6]} 26. a3 {[%clk 0:00:52.4]}
26... Qc7 {[%clk 0:01:04.7]} 27. Bc2 {[%clk 0:00:43.3]} 27... Qd7 {[%clk
0:01:02.3]} 28. Bb3 {[%clk 0:00:31.4]} 28... Rcd8 {[%clk 0:00:56.5]} 29. g3
{[%clk 0:00:31.3]} 29... Qf5 {[%clk 0:00:45]} 30. Qd2 {[%clk 0:00:29.5]} 30...
Qd7 {[%clk 0:00:35.7]} 31. Bc2 {[%clk 0:00:27.3]} 31... Rc8 {[%clk 0:00:33.2]}
32. Bb3 {[%clk 0:00:27.4]} 32... Rb8 {[%clk 0:00:32.4]} 33. Qe1 {[%clk
0:00:25.7]} 33... Rbc8 {[%clk 0:00:31.4]} 34. Re3 {[%clk 0:00:25.9]} 34... Rc7
{[%clk 0:00:31.7]} 35. Qe2 {[%clk 0:00:22.5]} 35... Rb8 {[%clk 0:00:26.8]} 36.
Rf3 {[%clk 0:00:22.4]} 36... a5 {[%clk 0:00:24.4]} 37. Kg2 {[%clk 0:00:18]}
37... Rcb7 {[%clk 0:00:24.1]} 38. Re3 {[%clk 0:00:11.2]} 38... b4 {[%clk
0:00:23.8]} 39. cxb4 {[%clk 0:00:12.1]} 39... axb4 {[%clk 0:00:24.3]} 40. a4
{[%clk 0:00:12.7]} 40... Qd8 {[%clk 0:00:21.9]} 41. Qe1 {[%clk 0:00:12.6]} 41...
Qb6 {[%clk 0:00:20.2]} 42. Rd2 {[%clk 0:00:08.8]} 42... Qa7 {[%clk 0:00:19.3]}
43. Rde2 {[%clk 0:00:08.8]} 43... Kf8 {[%clk 0:00:19.1]} 44. Qd2 {[%clk
0:00:08.5]} 44... Ng4 {[%clk 0:00:17.6]} 45. Re4 {[%clk 0:00:06.8]} 45... h5
{[%clk 0:00:18]} 46. Rf4 {[%clk 0:00:03.6]} 46... Kg8 {[%clk 0:00:17.7]} 47.
Rfe4 {[%clk 0:00:03]} 47... Ne5 {[%clk 0:00:16.4]} 48. Qg5 {[%clk 0:00:03.4]}
48... Kg7 {[%clk 0:00:16]} 49. Qd2 {[%clk 0:00:02.3]} 49... Qc5 {[%clk
0:00:14.5]} 50. Rf4 {[%clk 0:00:02.7]} 50... Rc7 {[%clk 0:00:14.1]} 51. Ree4
{[%clk 0:00:03]} 51... Rcb7 {[%clk 0:00:13.2]} 52. Rd4 {[%clk 0:00:03.4]} 52...
Qa5 {[%clk 0:00:12.6]} 53. Rfe4 {[%clk 0:00:03.7]} 53... Qc5 {[%clk 0:00:12.9]}
54. Qe1 {[%clk 0:00:04]} 54... Qa5 {[%clk 0:00:11.5]} 55. Qd2 {[%clk 0:00:04.2]}
55... Qc5 {[%clk 0:00:11.2]} 56. Qe1 {[%clk 0:00:04.6]} 56... Qa5 {[%clk
0:00:11.5]} 57. Qd2 {[%clk 0:00:05]} 1/2-1/2

[Event "Late-Titled-Tuesday-Blitz-October-17-2023"]
[Site "Chess.com"]
[Date "2023.10.17"]
[Round "7"]
[White "Rodalquilar"]
[Black "WPWPWP-2015"]
[Result "1-0"]
[WhiteElo "2777"]
[BlackElo "2571"]
[TimeControl "180+1"]
[EndTime "15:17:04 PDT"]
[Termination "Rodalquilar won by checkmate"]

1. d4 {[%clk 0:03:00.9]} 1... Nf6 {[%clk 0:02:58.4]} 2. Nf3 {[%clk 0:03:01.2]}
2... e6 {[%clk 0:02:58.5]} 3. Bf4 {[%clk 0:03:01.4]} 3... b6 {[%clk 0:02:57.7]}
4. e3 {[%clk 0:03:01.5]} 4... Bb7 {[%clk 0:02:57.3]} 5. Nbd2 {[%clk 0:03:01.9]}
5... Be7 {[%clk 0:02:57.2]} 6. h3 {[%clk 0:03:02.1]} 6... O-O {[%clk 0:02:57.1]}
7. Bd3 {[%clk 0:03:02.2]} 7... c5 {[%clk 0:02:56.7]} 8. c3 {[%clk 0:03:02.3]}
8... d6 {[%clk 0:02:56]} 9. O-O {[%clk 0:03:01.8]} 9... Nbd7 {[%clk 0:02:55]}
10. Bh2 {[%clk 0:03:02]} 10... Re8 {[%clk 0:02:53.1]} 11. a4 {[%clk 0:03:02.2]}
11... a6 {[%clk 0:02:51]} 12. e4 {[%clk 0:02:57]} 12... h6 {[%clk 0:02:50.1]}
13. Re1 {[%clk 0:02:52.8]} 13... Bf8 {[%clk 0:02:47.8]} 14. e5 {[%clk
0:02:46.6]} 14... dxe5 {[%clk 0:02:45.7]} 15. dxe5 {[%clk 0:02:47]} 15... Nd5
{[%clk 0:02:42.9]} 16. Ne4 {[%clk 0:02:43]} 16... Rc8 {[%clk 0:02:25.9]} 17. Qe2
{[%clk 0:02:41.1]} 17... Nb8 {[%clk 0:02:21.3]} 18. Rad1 {[%clk 0:02:39.8]}
18... Qd7 {[%clk 0:02:11.3]} 19. Bc2 {[%clk 0:02:22.6]} 19... Qc6 {[%clk
0:02:04.6]} 20. Qd3 {[%clk 0:01:47.2]} 20... g6 {[%clk 0:01:42.3]} 21. Nd6
{[%clk 0:01:38.3]} 21... Bxd6 {[%clk 0:01:37.5]} 22. exd6 {[%clk 0:01:39.2]}
22... Nd7 {[%clk 0:01:35.3]} 23. Qc4 {[%clk 0:01:35]} 23... Kh7 {[%clk
0:01:06.4]} 24. Qh4 {[%clk 0:01:33.9]} 24... N5f6 {[%clk 0:00:52]} 25. Bf4
{[%clk 0:01:06.2]} 25... Ng8 {[%clk 0:00:39.6]} 26. Be4 {[%clk 0:01:00.1]} 26...
Qxe4 {[%clk 0:00:33.2]} 27. Rxe4 {[%clk 0:01:00.3]} 27... Bxe4 {[%clk
0:00:33.2]} 28. Ng5+ {[%clk 0:01:00.7]} 28... Kg7 {[%clk 0:00:29.4]} 29. Nxe4
{[%clk 0:01:00.9]} 29... e5 {[%clk 0:00:29.6]} 30. Bc1 {[%clk 0:00:50.4]} 30...
f5 {[%clk 0:00:27.8]} 31. Ng3 {[%clk 0:00:50.2]} 31... b5 {[%clk 0:00:20.1]} 32.
axb5 {[%clk 0:00:49.7]} 32... axb5 {[%clk 0:00:19.7]} 33. Nf1 {[%clk 0:00:35.6]}
33... Re6 {[%clk 0:00:18.2]} 34. Qg3 {[%clk 0:00:34.6]} 34... Rc6 {[%clk
0:00:14.2]} 35. Qd3 {[%clk 0:00:33.8]} 35... Ngf6 {[%clk 0:00:08.4]} 36. Ne3
{[%clk 0:00:27.2]} 36... c4 {[%clk 0:00:07.6]} 37. Qd2 {[%clk 0:00:23.2]} 37...
Ne4 {[%clk 0:00:07.1]} 38. Qd5 {[%clk 0:00:13.6]} 38... Rcxd6 {[%clk 0:00:06.7]}
39. Qxb5 {[%clk 0:00:13.8]} 39... Rxd1+ {[%clk 0:00:05.8]} 40. Nxd1 {[%clk
0:00:14.7]} 40... Rd6 {[%clk 0:00:05.6]} 41. Ne3 {[%clk 0:00:15]} 41... Nef6
{[%clk 0:00:02.8]} 42. Nxc4 {[%clk 0:00:11.2]} 42... Rd1+ {[%clk 0:00:02.2]} 43.
Kh2 {[%clk 0:00:11.8]} 43... Rxc1 {[%clk 0:00:02.6]} 44. Nxe5 {[%clk 0:00:12.3]}
44... Nxe5 {[%clk 0:00:02.4]} 45. Qxe5 {[%clk 0:00:12.5]} 45... Rc2 {[%clk
0:00:02.5]} 46. Qe7+ {[%clk 0:00:12.6]} 46... Kg8 {[%clk 0:00:02.9]} 47. Qxf6
{[%clk 0:00:12.9]} 47... Rxf2 {[%clk 0:00:02.9]} 48. Qxg6+ {[%clk 0:00:13.4]}
48... Kf8 {[%clk 0:00:03.5]} 49. Qxh6+ {[%clk 0:00:13.5]} 49... Kf7 {[%clk
0:00:03.8]} 50. Qh5+ {[%clk 0:00:13.7]} 50... Ke6 {[%clk 0:00:04.2]} 51. Qh6+
{[%clk 0:00:12.6]} 51... Kf7 {[%clk 0:00:04]} 52. Qc1 {[%clk 0:00:12.7]} 52...
f4 {[%clk 0:00:03.6]} 53. Kg1 {[%clk 0:00:11.7]} 53... Re2 {[%clk 0:00:03.1]}
54. Qxf4+ {[%clk 0:00:11.9]} 54... Ke8 {[%clk 0:00:03.3]} 55. Qc1 {[%clk
0:00:08.5]} 55... Kf7 {[%clk 0:00:02.7]} 56. c4 {[%clk 0:00:08.8]} 56... Kg6
{[%clk 0:00:02.6]} 57. c5 {[%clk 0:00:08.8]} 57... Kf5 {[%clk 0:00:01.3]} 58.
Qf1+ {[%clk 0:00:08.5]} 58... Kg5 {[%clk 0:00:01.2]} 59. Qxe2 {[%clk 0:00:08.7]}
59... Kh4 {[%clk 0:00:02.1]} 60. Qg4# {[%clk 0:00:09]} 1-0